Cogmind - Beta 17.1 --- EXPLORER MODE // 2026.09.21 @ 18:13:26 Player: NeoBioHazard Result: Escaped! Performance ------------- Evolutions (9) 4500 Regions Visited (20) 4000 Robots Destroyed (539) 2695 Value Destroyed (32560) 32560 Prototype IDs (18) 360 Alien Tech Used (0) 0 Bonus (21834) 21834 TOTAL SCORE: 65949 Bonus ------- High Alert Combat Kills 12085 Follower Combat Kills 1503 Entered Garrisons 1400 Used RIF Installer 4000 Win 3000 Friendly Fire -154 Cogmind --------- Core Integrity 1425/1600 Matter 94/300 Energy 822/850 System Corruption 18% Temperature Cool (28) Movement Treading (162) Location To Epsilon Eridani Parts ------- > --- POWER (3) -------- Quantum Reactor Quantum Reactor Quantum Reactor > --- PROPULSION (8) --- Armored Heavy Treads Advanced Heavy Siege Treads Advanced Heavy Siege Treads Advanced Heavy Siege Treads > --- UTILITY (9) ------ Advanced Heat Sink Advanced Heat Sink Advanced Heat Sink Advanced Heat Sink Experimental Heat Sink Advanced Cooling System (fused) Huge Storage Unit Advanced Targeting Computer Experimental Core Analyzer > --- WEAPON (6) ------- Enhanced Nova Cannon Enhanced Nova Cannon Enhanced Nova Cannon Enhanced Nova Cannon Enhanced Hardcell Cannon Enhanced Hardcell Cannon > --- INVENTORY (25) --- Light Antimatter Reactor Quantum Reactor Quantum Reactor Quantum Reactor Light Quantum Reactor Light Quantum Reactor Light Quantum Reactor Experimental Power Amplifier Experimental Power Amplifier Advanced Heat Sink Advanced Heat Sink Advanced Heat Sink Advanced Heat Sink Advanced Heat Sink Advanced Heat Sink Advanced Heat Sink High-capacity Storage Unit Enhanced Nova Cannon Enhanced Nova Cannon Helical Railgun Enhanced Hardcell Cannon Micro-nuke Launcher Plasma Cutter Heavy Mace Peak State ------------ > --- POWER ------------ Quantum Reactor Quantum Reactor Quantum Reactor > --- PROPULSION ------- Biometal Heavy Treads Advanced Heavy Siege Treads Advanced Heavy Siege Treads Advanced Heavy Siege Treads > --- UTILITY ---------- Advanced Heat Sink Advanced Heat Sink Advanced Heat Sink Experimental Heat Sink Advanced Cooling System Huge Storage Unit Experimental Optical Array Advanced Target Analyzer Experimental Core Analyzer > --- WEAPON ----------- Enhanced Nova Cannon Enhanced Nova Cannon Enhanced Nova Cannon Enhanced Nova Cannon Enhanced Hardcell Cannon Enhanced Hardcell Cannon > --- INVENTORY -------- Light Antimatter Reactor Quantum Reactor Quantum Reactor Quantum Reactor Light Quantum Reactor Light Quantum Reactor Light Quantum Reactor Armored Heavy Treads Experimental Power Amplifier Experimental Power Amplifier Advanced Heat Sink Advanced Heat Sink Advanced Heat Sink Advanced Heat Sink Advanced Heat Sink Advanced Heat Sink High-capacity Storage Unit Enhanced Nova Cannon Enhanced Nova Cannon Enhanced Nova Cannon Helical Railgun Micro-nuke Launcher Plasma Cutter Heavy Mace [Rating: 224] Favorites ----------- Power Quantum Reactor Engine Reinforced Deuterium Engine Power Core Reinforced Fission Core Reactor Quantum Reactor Propulsion Advanced Heavy Siege Treads Treads Advanced Heavy Siege Treads Utility Advanced Cooling System Device Advanced Cooling System Storage High-capacity Storage Unit Processor Advanced Targeting Computer Protection Improved Light Armor Plating Weapon Enhanced Nova Cannon Energy Gun Quantum Rifle Energy Cannon Enhanced Nova Cannon Ballistic Gun High-powered Shotgun Ballistic Cannon Enhanced Hardcell Cannon Launcher Micro-nuke Launcher Impact Weapon Heavy Mace Build | -11 -10 -9 -8 -7 -7 -6 -6 -5 -5 -4 -4 -3 -3 -2 -2 -2 -2 -1 -1 -1 ------- Run | Yrd Mat Mat Mat Fac Gar Fac Gar Fac Ext Fac Gar Res Gar Res Gar Res Gar Acc Gar Acc Slots Evolved 19 | . 1 2 2 2 . 2 . 2 . 2 . 2 . 2 . . . 2 . . Power 2 | . . . . . . . . . . . . 2 . . . . . . . . Propulsion 6 | . . . 2 1 . 1 . . . 2 . . . . . . . . . . Utility 7 | . 1 2 . 1 . 1 . 2 . . . . . . . . . . . . Weapon 4 | . . . . . . . . . . . . . . 2 . . . 2 . . Parts Attached 226 | 7 4 7 12 5 5 12 6 13 4 9 27 10 11 2 27 7 3 29 11 15 Power 21 | 1 . 1 . 1 . . 2 . . . 4 1 . . 2 . . 2 4 3 Engine 4 | 1 . 1 . 1 . . 1 . . . . . . . . . . . . . Core 2 | . . . . . . . 1 . . . 1 . . . . . . . . . Reactor 15 | . . . . . . . . . . . 3 1 . . 2 . . 2 4 3 Propulsion 50 | 2 . 2 6 4 3 5 1 3 . 6 6 . 2 . 4 2 . 2 1 1 Treads 50 | 2 . 2 6 4 3 5 1 3 . 6 6 . 2 . 4 2 . 2 1 1 Leg . | . . . . . . . . . . . . . . . . . . . . . Wheel . | . . . . . . . . . . . . . . . . . . . . . Hover . | . . . . . . . . . . . . . . . . . . . . . Flight . | . . . . . . . . . . . . . . . . . . . . . Utility 94 | 2 1 2 3 . 2 4 1 6 1 1 10 5 6 1 13 4 3 18 5 6 Device 55 | . . 1 . . . 1 1 4 1 1 7 3 3 1 7 3 1 16 3 2 Storage 5 | 1 1 . . . . . . . . . . 1 . . . . . . 1 1 Processor 22 | 1 . . 2 . . 1 . 2 . . 2 1 2 . 5 1 1 1 . 3 Hackware . | . . . . . . . . . . . . . . . . . . . . . Protection 12 | . . 1 1 . 2 2 . . . . 1 . 1 . 1 . 1 1 1 . Artifact . | . . . . . . . . . . . . . . . . . . . . . Weapon 61 | 2 3 2 3 . . 3 2 4 3 2 7 4 3 1 8 1 . 7 1 5 Energy Gun 10 | . 1 . . . . 3 . . . . . 2 2 1 1 . . . . . Energy Cannon 22 | . . . . . . . 1 3 3 1 2 1 . . 4 . . 5 . 2 Ballistic Gun 14 | 2 2 2 2 . . . . . . . 5 . . . 1 . . . . . Ballistic Cannon 12 | . . . . . . . 1 1 . . . 1 . . 2 1 . 2 1 3 Launcher 1 | . . . . . . . . . . . . . 1 . . . . . . . Special Weapon . | . . . . . . . . . . . . . . . . . . . . . Impact Weapon 2 | . . . 1 . . . . . . 1 . . . . . . . . . . Slashing Weapon . | . . . . . . . . . . . . . . . . . . . . . Piercing Weapon . | . . . . . . . . . . . . . . . . . . . . . Special Melee Weapon . | . . . . . . . . . . . . . . . . . . . . . Unidentified Prototypes 15 | . 1 . . . . 1 . 1 . . . . . . 4 1 . 6 . 1 Parts Lost 44 | . . . . . 5 4 6 . . 3 9 . 1 . 1 . . 4 9 2 Power 3 | . . . . . . . 1 . . . . . . . . . . . 2 . Propulsion 11 | . . . . . 2 1 2 . . 1 3 . . . . . . . 1 1 Utility 19 | . . . . . 2 1 1 . . 1 5 . 1 . 1 . . 2 4 1 Weapon 11 | . . . . . 1 2 2 . . 1 1 . . . . . . 2 2 . Highest Loss Streak 4 | . . . . . 4 2 3 . . 3 2 . 1 . 1 . . 4 4 1 To Critical Strikes 7 | . . . . . . . . . . . 4 . . . . . . . 3 . Average Backups 15 | . 5 10 14 14 14 14 12 14 14 14 14 13 18 16 19 19 19 18 17 21 Power 1 | . 1 1 1 1 1 1 1 2 2 2 1 . 1 1 1 1 1 1 2 4 Propulsion 1 | . . 2 1 2 2 3 3 4 4 3 2 1 1 1 . . 1 1 . . Utility 4 | . . . 3 3 4 4 6 6 6 5 2 2 5 6 5 4 4 4 6 8 Weapon 7 | . 3 5 7 7 6 4 1 1 1 3 7 8 9 7 11 12 12 9 6 5 Tool/Special . | . . . . . . . . . . . . . . . . . . . . . Unused Backups 42 | . . 1 . . . 2 . 1 . 3 5 1 5 . 13 2 . 1 1 7 Power 6 | . . . . . . . . . . . 2 . . . 1 . . . . 3 Propulsion 6 | . . . . . . . . . . . 1 . 1 . 1 1 . 1 1 . Utility 13 | . . . . . . . . 1 . 3 1 . 1 . 3 1 . . . 3 Weapon 16 | . . 1 . . . 2 . . . . 1 1 3 . 8 . . . . . Tool/Special 1 | . . . . . . . . . . . . . . . . . . . . 1 Average Slot Usage (%) 84 | . 94 91 99 90 96 93 93 84 88 89 77 79 80 82 79 78 78 81 82 81 Engine 1 | . 12 10 8 7 7 6 3 . . . . . . . . . . . . . Reactor 6 | . . . . . . . . . . . 1 12 13 12 12 12 12 11 10 11 Treads 20 | . 25 20 32 31 34 36 33 22 22 30 19 18 18 16 15 15 16 14 14 14 Device 15 | . . 2 8 7 4 5 8 20 22 19 18 20 21 20 16 15 16 17 22 19 Storage 5 | . 19 20 9 7 7 6 6 5 5 5 5 4 4 4 4 4 4 3 3 3 Processor 11 | . 12 10 14 14 14 14 15 15 22 20 16 13 10 8 8 8 8 5 3 5 Protection 4 | . . 9 8 8 13 11 9 3 . . 2 . 3 4 4 4 4 2 2 2 Energy Gun 1 | . . . . . . 9 2 . . . . 2 8 15 3 . . . . . Energy Cannon 5 | . . . . . . . 2 4 11 9 3 1 . . 4 8 7 11 16 16 Ballistic Gun 4 | . 24 20 15 14 14 2 5 . . . 6 2 . . . . . . . . Ballistic Cannon 3 | . . . . . . . 2 5 . . . 1 . . 7 8 8 9 5 5 Peak Build Rating 224 | 7 10 21 30 41 41 57 67 98 98 115 131 164 170 185 193 201 196 219 216 224 Average Rating 133 | 4 9 14 28 33 40 51 56 89 97 104 111 153 167 184 188 193 194 211 211 211 On Entrance 105 | . 7 10 21 30 41 39 57 67 98 96 115 120 164 170 182 193 196 192 216 209 Avg Prop Armor Cover (%) 12 | . . . . . . 4 . . . 15 17 14 7 6 5 5 4 . . . Naked Turns . | . . . . . . . . . . . . . . . . . . . . . Heaviest Build 238 | 18 41 51 51 57 57 50 65 72 64 64 76 164 155 161 198 197 196 227 211 238 Greatest Support 315 | 40 40 40 80 116 116 146 168 195 195 255 230 160 230 230 310 310 310 310 315 315 Greatest Overweight (x) 1 | . 1 1 . . . . . . . . . 1 . . . . . . . . Average Overweight (x) . | . . 1 . . . . . . . . . . . . . . . . . . Largest Inventory Capacity 25 | 10 15 15 15 15 15 15 15 15 15 15 15 20 20 20 20 20 20 20 20 25 Average Capacity 17 | 7 12 15 15 15 15 15 15 15 15 15 15 19 20 20 20 20 20 20 20 23 Most Carried 25 | 2 6 15 15 15 15 15 15 15 15 15 15 20 20 19 20 20 20 20 20 25 Average Carried 16 | . 5 10 14 14 14 14 12 14 14 14 14 14 19 18 19 19 20 19 18 21 Final Capacity 25 | 10 15 15 15 15 15 15 15 15 15 15 15 20 20 20 20 20 20 20 20 25 Final Carried 24 | 2 6 15 15 15 15 15 14 15 15 15 15 20 20 19 20 20 20 20 20 24 Class Distribution -------------------- 34% | Hacker-Mutant 24% | Scavenger-Mutant 21% | Scavenger-Tank 15% | Scavenger-Executioner Dominant Class ---------------- Hacker-Mutant | -10/Materials Hacker-Mutant | -9/Materials Hacker-Mutant | -8/Materials Hacker-Mutant | -7/Factory Hacker-Mutant | -7/Garrison Scavenger-Mutant | -6/Factory Hacker-Mutant | -6/Garrison Hacker-Mutant | -5/Factory Hacker-Mutant | -5/Extension Hacker-Mutant | -4/Factory Scavenger-Mutant | -4/Garrison Hacker-Mutant | -3/Research Scavenger-Mutant | -3/Garrison Scavenger-Tank | -2/Research Scavenger-Tank | -2/Garrison Scavenger-Tank | -2/Research Scavenger-Tank | -2/Garrison Scavenger-Executioner | -1/Access Scavenger-Executioner | -1/Garrison Scavenger-Executioner | -1/Access Resources | -11 -10 -9 -8 -7 -7 -6 -6 -5 -5 -4 -4 -3 -3 -2 -2 -2 -2 -1 -1 -1 ----------- Run | Yrd Mat Mat Mat Fac Gar Fac Gar Fac Ext Fac Gar Res Gar Res Gar Res Gar Acc Gar Acc Matter Collected 12167 | 258 284 286 528 228 505 175 361 272 50 115 1409 432 242 35 1742 856 963 1373 1055 998 Remotely . | . . . . . . . . . . . . . . . . . . . . . Salvage Created 29816 | . 377 494 988 368 942 941 914 381 638 662 3145 1728 1888 461 3072 2710 2084 2204 3265 2554 Parts 1195 | . 21 37 44 18 47 35 36 19 24 16 119 63 69 11 110 89 109 87 122 119 Haulers Intercepted 15 | . 2 . 2 . . . . 1 1 1 . 1 . . . 3 . 1 . 3 Recyclers Shooed 8 | . . . . . . . . . . . . 5 . 1 . 1 . 1 . . Parts Field Recycled . | . . . . . . . . . . . . . . . . . . . . . Retrieved Matter . | . . . . . . . . . . . . . . . . . . . . . Parts Self-Destructed . | . . . . . . . . . . . . . . . . . . . . . Prevented . | . . . . . . . . . . . . . . . . . . . . . Parts Restored . | . . . . . . . . . . . . . . . . . . . . . Kills | -11 -10 -9 -8 -7 -7 -6 -6 -5 -5 -4 -4 -3 -3 -2 -2 -2 -2 -1 -1 -1 ------- Run | Yrd Mat Mat Mat Fac Gar Fac Gar Fac Ext Fac Gar Res Gar Res Gar Res Gar Acc Gar Acc Combat Hostiles Destroyed 469 | . 10 8 24 9 31 15 24 5 9 7 52 14 27 5 51 27 38 31 47 35 Guns 187 | . 10 8 24 9 31 11 19 . . . 26 8 22 4 15 . . . . . Cannons 230 | . . . . . . . 4 5 9 2 20 5 . . 32 23 34 22 41 33 AOE 4 | . . . . . . . . . . . . . . . . . 1 3 . . Classes Destroyed 20 | . 5 5 . . 3 1 . 1 1 1 1 . . . 2 . . . . . Worker 9 | . . 2 3 . . . . . . . . 2 . . . 2 . . . . Builder 8 | . 1 1 1 . . . . . 2 . . . . . . . . 2 . 1 Tunneler 2 | . . 1 . . . . . . . . . 1 . . . . . . . . Hauler 15 | . 2 . 2 . . . . 1 1 1 . 1 . . . 3 . 1 . 3 Recycler 9 | . . 2 1 . . . . . . . . 4 . . . 2 . . . . Operator 4 | . . . . . . . . 2 1 . . . . . . . . . . 1 Watcher 20 | . 3 3 3 . . 1 . 1 1 . 1 1 . . . 5 . . . 1 Swarmer 92 | . 6 3 8 1 12 . 12 . . . 11 . 6 . 7 . 8 1 8 9 Cutter 9 | . . . . . 2 . . . . . 2 . . . 2 . 3 . . . Saboteur 4 | . . . . . . . . . . . . . . . 2 . 2 . . . Grunt 118 | . 4 1 9 3 10 7 6 2 3 2 6 2 11 2 15 6 4 13 11 1 Brawler 12 | . . 1 . 2 1 2 . . . 1 . 1 . . . . . . 4 . Duelist 14 | . . . . . 1 2 2 . . . 7 . 2 . . . . . . . Protector 1 | . . . . . . . . . . 1 . . . . . . . . . . Sentry 70 | . . 3 7 3 4 3 2 1 2 1 11 4 2 1 8 4 5 1 5 3 Specialist 8 | . . . . . . . . . . . 3 . . . 3 . 2 . . . Hunter 56 | . . . . . 1 . 2 . 1 2 10 . 4 2 4 10 2 6 8 4 Programmer 71 | . . . . . . 1 . 2 1 . 4 6 1 . 6 7 10 9 8 16 Behemoth 14 | . . . . . . . . . 2 . 1 1 1 . 2 . 2 1 2 2 Executioner 2 | . . . . . . . . . . . . . . . 2 . . . . . Guerrilla 1 | . . . . . . . . . . . . . . . . . . . 1 . Best Kill Streak 15 | . 3 4 5 5 6 6 7 2 4 3 7 5 6 5 6 8 5 9 15 7 Combat Bots Only 15 | . 2 3 4 5 6 6 7 2 3 5 7 3 6 5 6 5 5 9 15 7 Max Kills in Single Turn 3 | . 2 1 2 1 2 1 2 1 2 1 3 1 2 1 2 2 2 2 2 3 Gunslinging 1 | . . . 1 . 1 . 1 . . . 1 . 1 . . . . . . . Exploded 2 | . . . . . . . . . . . . . . . . . 1 2 . . Melee . | . . . . . . . . . . . . . . . . . . . . . Uniques/NPCs Destroyed . | . . . . . . . . . . . . . . . . . . . . . Combat | -11 -10 -9 -8 -7 -7 -6 -6 -5 -5 -4 -4 -3 -3 -2 -2 -2 -2 -1 -1 -1 -------- Run | Yrd Mat Mat Mat Fac Gar Fac Gar Fac Ext Fac Gar Res Gar Res Gar Res Gar Acc Gar Acc Hostile Shots Fired 3165 | . 29 24 58 107 208 178 201 16 109 102 435 103 261 12 345 104 114 263 321 175 Missed 950 | . 5 6 11 44 49 71 73 4 41 37 109 33 96 4 110 29 31 63 75 59 Hits 2215 | . 24 18 47 63 159 107 128 12 68 65 326 70 165 8 235 75 83 200 246 116 Melee 61 | . . . . 1 6 3 8 . . 2 17 . 13 . 4 . 2 . 5 . Projectile 2154 | . 24 18 47 62 153 104 120 12 68 63 309 70 152 8 231 75 81 200 241 116 AOE 7 | . . . . . 2 . . . 1 . 2 . . . 1 . 1 . . . Critical Strikes 99 | . 2 3 . . 6 3 1 2 3 4 16 4 12 . 12 3 3 9 9 7 Part Disruptions 5 | . . . . . . 1 1 . . . . . . . 1 . 1 1 . . Damage Taken 21757 | . 162 137 404 396 1256 902 1343 146 1037 786 4158 538 1184 65 1784 527 656 2230 2460 1586 Core 1203 | . 22 24 37 26 87 97 123 14 38 47 212 81 89 . 75 30 26 57 72 46 Absorbed by Shields 6459 | . . . . . . . . . 173 . . 564 1227 68 1869 556 692 464 846 . Reduced by Siege Mode 342 | . . . . . . . . . . . 124 . 57 . . . 4 . 157 . Ignored by Resistances 16812 | . 105 87 248 262 800 562 814 87 703 469 2492 651 1420 78 2136 634 786 1587 1948 943 Core Remaining (%) 88 | 100 91 94 93 . 83 . 74 . 94 . 77 . 86 . . . 90 . . 89 Volleys Fired 1061 | . 29 27 53 19 58 54 53 16 43 18 148 66 98 10 100 50 61 37 66 55 Largest 6 | . 2 2 2 2 2 2 2 2 2 2 2 2 2 4 4 4 4 6 6 6 Hottest 658 | . 46 50 50 50 50 105 134 180 180 162 162 188 188 338 356 356 356 596 658 658 Shots Fired 3108 | . 58 54 106 38 115 95 105 32 86 24 296 132 196 40 400 198 213 216 385 319 Gun 1261 | . 58 54 106 38 115 95 91 . . . 200 91 194 40 179 . . . . . Cannon 1845 | . . . . . . . 14 32 86 24 96 41 . . 221 198 213 216 385 319 Launcher 2 | . . . . . . . . . . . . . 2 . . . . . . . Special . | . . . . . . . . . . . . . . . . . . . . . Kinetic 1385 | . 58 54 106 38 115 15 46 22 . . 200 54 . . 172 97 95 113 106 94 Thermal 1416 | . . . . . . . 7 10 86 . 88 57 125 20 197 101 118 103 279 225 Explosive 2 | . . . . . . . . . . . . . 2 . . . . . . . Electromagnetic 305 | . . . . . . 80 52 . . 24 8 21 69 20 31 . . . . . Robot Hit Streak 68 | . 32 34 26 54 29 68 39 15 46 48 49 38 33 21 50 53 25 46 30 40 Robot Miss Streak 3 | . 2 2 2 1 2 1 1 2 1 1 2 1 1 3 2 2 1 2 2 2 Penetration Max 2 | . . . . . . . . . . . 2 1 . . . . . . . . Secondary Targets 32 | . . . 2 1 10 3 4 . . . 5 1 3 . 3 . . . . . Max Gunslinging Chain 1 | . . . 1 1 1 1 1 . . . 1 1 1 . 1 . . . . . Shots Hit Robots 2188 | . 49 43 91 36 105 94 93 24 80 28 240 114 170 27 280 102 112 108 230 162 Core Hits 1080 | . 26 26 60 26 83 54 56 13 24 11 128 52 76 12 109 55 58 55 89 67 Critical Kills 36 | . . . 1 1 . . . . . . 5 1 . . 3 7 3 6 6 3 Critical Parts Destroyed 10 | . 2 . 1 . 2 1 . . . 2 1 1 . . . . . . . . Critical Strikes 87 | . 2 . 3 1 2 2 2 . . 4 7 5 2 1 19 9 7 8 9 4 Meltdown 32 | . . . . . . . . . . . 4 . . . 3 7 3 6 6 3 Destroy 13 | . 2 . 3 1 2 1 . . . . 2 2 . . . . . . . . Blast 27 | . . . . . . . . . . . . 3 . . 12 2 4 2 3 1 Corrupt 13 | . . . . . . 1 2 . . 2 1 . 2 1 4 . . . . . Smash 2 | . . . . . . . . . . 2 . . . . . . . . . . Melee Attacks 9 | . . . 3 . . . . . . 6 . . . . . . . . . . Impact 9 | . . . 3 . . . . . . 6 . . . . . . . . . . Slashing . | . . . . . . . . . . . . . . . . . . . . . Piercing . | . . . . . . . . . . . . . . . . . . . . . Sneak Attacks 1 | . . . 1 . . . . . . . . . . . . . . . . . Combat Hostiles . | . . . . . . . . . . . . . . . . . . . . . Follow-up Attacks . | . . . . . . . . . . . . . . . . . . . . . Damage Inflicted 77224 | . 942 781 2226 912 2579 1747 2058 874 3755 1008 8084 3499 4449 841 9969 4722 5470 5717 9945 7646 Guns 27319 | . 942 781 2114 912 2579 1700 1718 . . . 4695 2296 4449 841 4292 . . . . . Cannons 47892 | . . . . . . . 340 810 3452 743 2891 1203 . . 5662 4722 5400 5078 9945 7646 Explosions 1558 | . . . . . . 47 . 64 303 . 498 . . . . . 70 576 . . Melee 367 | . . . 112 . . . . . . 255 . . . . . . . . . . Ramming 88 | . . . . . . . . . . 10 . . . . 15 . . 63 . . Kinetic 28054 | . 942 781 2114 912 2579 343 985 537 . . 4695 1641 . . 4351 1444 1793 1900 1594 1443 Thermal 41800 | . . . . . . 47 194 337 3755 . 2634 1411 3198 399 5208 3278 3607 3178 8351 6203 Explosive 1144 | . . . . . . . . . . . 498 . . . . . 70 576 . . Electromagnetic 5771 | . . . . . . 1357 879 . . 743 257 447 1251 442 395 . . . . . Impact 367 | . . . 112 . . . . . . 255 . . . . . . . . . . Slashing . | . . . . . . . . . . . . . . . . . . . . . Piercing . | . . . . . . . . . . . . . . . . . . . . . Highest Corruption 18 | . 1 . . . . 1 4 . . 2 9 3 5 . 7 10 13 7 13 18 Average Corruption 7 | . 1 . . . . 1 3 . . 1 7 1 3 . 6 8 12 2 8 13 Corruption Purged . | . . . . . . . . . . . . . . . . . . . . . Corruption Blocked . | . . . . . . . . . . . . . . . . . . . . . Effects 516 | . 2 . . . . . 23 . . 5 94 6 42 . 71 37 78 14 72 72 Message Errors 114 | . 1 . . . . . 4 . . 1 22 1 10 . 13 7 18 6 15 16 Matter Fused 120 | . . . . . . . 10 . . 3 21 1 12 . 13 1 23 2 14 20 Heat Flow Errors 62 | . . . . . . . 1 . . . 21 1 6 . 8 4 10 1 3 7 Energy Discharges 47 | . . . . . . . . . . . 5 2 2 . 7 7 5 1 12 6 Parts Rejected 5 | . . . . . . . . . . . 2 . . . 1 1 . . . 1 Parts Fused 6 | . . . . . . . 1 . . . . . . . 2 1 1 . 1 . Data Loss (minor) 57 | . 1 . . . . . 3 . . 1 9 . 4 . 9 5 8 1 10 6 Data Loss (major) 34 | . . . . . . . . . . . 5 . 4 . 7 1 5 1 7 4 Misfires 22 | . . . . . . . 2 . . . 3 1 1 . 8 3 2 1 1 . Alerts 9 | . . . . . . . . . . . 3 . 2 . . 2 . . 1 1 Misdirections 1 | . . . . . . . . . . . . . . . . . . . . 1 Weapon Failures 39 | . . . . . . . 2 . . . 3 . 1 . 3 5 6 1 8 10 Overload Shots . | . . . . . . . . . . . . . . . . . . . . . Overflow Damage 1081 | . . . 82 . . . . 17 26 74 81 23 . . 147 164 176 111 75 105 Projectiles 901 | . . . . . . . . 17 24 16 81 23 . . 147 164 176 73 75 105 Explosions 2 | . . . . . . . . . 2 . . . . . . . . . . . Melee 178 | . . . 82 . . . . . . 58 . . . . . . . 38 . . Knockbacks 77 | . . . . . . . 1 2 . . . 1 . . 26 15 7 7 14 4 Impact 1 | . . . . . . . . . . . . . . . . . . 1 . . Kinetic 67 | . . . . . . . 1 2 . . . 1 . . 21 14 7 6 12 3 Secondary 9 | . . . . . . . . . . . . . . . 5 1 . . 2 1 Self-Inflicted Damage 138 | . . . . . . . . . . . 86 . . . . . . 52 . . Shots 3 | . . . . . . . . . . . 2 . . . . . . 1 . . Rammed 5 | . . . . . . . . . . 2 . . . . 2 . . 1 . . Targets Rammed 5 | . . . . . . . . . . 2 . . . . 2 . . 1 . . Kicked . | . . . . . . . . . . . . . . . . . . . . . Crushed . | . . . . . . . . . . . . . . . . . . . . . Highest Temperature 542 | . 51 23 . 4 38 57 215 28 84 147 238 172 213 542 380 372 416 484 253 392 Average Temperature 77 | . 26 9 . 4 11 22 38 19 33 35 89 112 47 237 60 103 103 88 66 96 Received Heat Transfer 4188 | . 114 102 288 210 630 450 228 39 233 268 748 101 152 8 264 64 36 157 60 36 Effects 22 | . . . . . . . . . . . . . . 11 . 1 7 2 . 1 Shutdowns 8 | . . . . . . . . . . . . . . 4 . . 3 1 . . Energy Bleed 1 | . . . . . . . . . . . . . . . . 1 . . . . Interference 5 | . . . . . . . . . . . . . . 1 . . 3 1 . . Matter Decay 1 | . . . . . . . . . . . . . . . . . . . . 1 Short Circuit 1 | . . . . . . . . . . . . . . 1 . . . . . . Damage (minor) 2 | . . . . . . . . . . . . . . 1 . . 1 . . . Damage (major) 4 | . . . . . . . . . . . . . . 4 . . . . . . Siege Activations 6 | . . . . . . . . . . . 1 . 1 . . . 2 . 2 . Total Turns 458 | . . . . . . . . . . . 74 . 45 . . . 179 . 160 . Longest Duration 178 | . . . . . . . . . . . 74 . 45 . . . 178 . 92 . Martial Activations . | . . . . . . . . . . . . . . . . . . . . . Shielding Activations . | . . . . . . . . . . . . . . . . . . . . . Robots Disrupted . | . . . . . . . . . . . . . . . . . . . . . Combat Hostiles . | . . . . . . . . . . . . . . . . . . . . . Robots Corrupted 19 | . . . . . . 4 1 . . 5 2 1 4 1 1 . . . . . Combat Hostiles 19 | . . . . . . 4 1 . . 5 2 1 4 1 1 . . . . . Parts Fried 34 | . . . . . . 7 2 . . 8 1 . 10 4 2 . . . . . Impact Corruptions 7 | . . . 2 . . . . . . 3 . . . . 1 . . 1 . . Robots Melted 33 | . . . . . . . . . . . 4 . 1 . 3 7 3 6 6 3 Combat Hostiles 28 | . . . . . . . . . . . 4 . 1 . 3 4 3 6 5 2 Parts Melted 119 | . . . . . . . 1 . . . 6 9 13 . 13 12 9 17 24 15 Heat Transferred 34936 | . . . . . . 50 300 100 250 . 2791 1739 4144 518 5666 2738 2847 2532 6534 4727 Parts Sabotaged 1 | . . . . . . . . . . . . . . . . . 1 . . . Parts Stolen . | . . . . . . . . . . . . . . . . . . . . . Parts Stripped . | . . . . . . . . . . . . . . . . . . . . . Power Chain Reactions 4 | . . . . . . 1 . 1 2 . . . . . . . . . . . Alert | -11 -10 -9 -8 -7 -7 -6 -6 -5 -5 -4 -4 -3 -3 -2 -2 -2 -2 -1 -1 -1 ------- Run | Yrd Mat Mat Mat Fac Gar Fac Gar Fac Ext Fac Gar Res Gar Res Gar Res Gar Acc Gar Acc Maximum Alert Level 5 | . . . . . 3 1 2 1 . . 5 3 5 3 5 4 5 3 5 3 Low Security (%) 26 | 100 100 100 100 100 22 66 15 97 100 100 10 . . . . . . . . . Level 1 3 | . . . . . 22 33 24 2 . . 3 . 2 . . . . . . . Level 2 15 | . . . . . 41 . 59 . . . 25 31 21 62 13 . . 16 19 . Level 3 30 | . . . . . 14 . . . . . 20 68 33 37 25 89 29 83 38 100 Level 4 12 | . . . . . . . . . . . 14 . 39 . 24 10 25 . 24 . Level 5 11 | . . . . . . . . . . . 26 . 3 . 36 . 44 . 17 . High Security . | . . . . . . . . . . . . . . . . . . . . . Max Security . | . . . . . . . . . . . . . . . . . . . . . Peak Influence 2444 | . 72 60 138 125 820 319 551 214 71 180 2444 1032 1667 743 2403 1268 2066 939 1796 1073 Initial 1032 | . . . . 35 59 319 81 214 . 9 3 1032 355 703 425 1014 723 939 419 816 Average 767 | . 10 8 30 68 409 160 385 47 17 68 1052 785 984 693 1406 942 1438 762 1147 914 Influence Increases 16708 | . 288 262 716 230 831 417 530 178 348 320 2591 462 1342 145 2048 944 1383 822 1487 1364 Destroy 0b10 Robot/C 9235 | . 200 160 480 180 680 320 480 100 200 120 1080 280 680 120 1100 540 625 525 750 615 Destroy 0b10 Robot/NC 336 | . 30 45 50 . . 5 . 20 30 10 5 45 . . . 60 . 12 . 24 Destroy Leader 1360 | . 50 56 140 30 30 92 30 34 34 32 40 94 60 20 60 146 82 106 80 144 Allied During Kill 286 | . . . . . 6 . . . 2 . 8 . 11 2 33 . 27 26 33 138 Successful Hack 120 | . 8 . 3 . 5 . 20 . 6 8 32 20 . . 10 . 8 . . . Disable Machine 123 | . . . 8 8 . . . . . . 4 . 12 . 4 24 21 15 6 21 Anti-Garrison Action 3041 | . . . . . 50 . . . . 150 1100 . 450 . 650 . 264 . 264 113 Destroy Structure 1835 | . . 1 5 12 . . . 24 16 . 292 8 99 3 161 174 263 138 330 309 Lose Combat Pursuer 372 | . . . 30 . 60 . . . 60 . 30 15 30 . 30 . 93 . 24 . Influence Decreases 15823 | . 288 262 608 228 121 1086 130 729 323 338 154 2297 284 1084 373 2109 555 2222 357 2275 Entered New Map 8243 | . . . . 73 51 501 70 337 . 16 4 1412 254 964 303 1389 515 1127 247 980 Time Decay 6600 | . 268 262 608 155 . 525 . 392 303 292 . 885 . 120 . 720 . 975 . 1095 Lost Part 440 | . . . . . 50 40 60 . . 30 90 . 10 . 10 . . 40 90 20 Lost Ally 520 | . . . . . 20 20 . . 20 . 60 . 20 . 60 . 40 80 20 180 Purge Threat 20 | . 20 . . . . . . . . . . . . . . . . . . . Squads Dispatched 37 | . . . 2 2 . 4 . 1 2 2 . 2 . 2 . 8 . 6 . 6 Investigation 3 | . . . 1 . . . . . . . . . . . . 2 . . . . Extermination 14 | . . . . . . 1 . 1 . . . 2 . . . 2 . 4 . 4 Reinforcement 9 | . . . 1 . . . . . 2 1 . . . 1 . 2 . 2 . . Assault 4 | . . . . . . . . . . 1 . . . . . 1 . . . 2 Garrison 7 | . . . . 2 . 3 . . . . . . . 1 . 1 . . . . Intercept . | . . . . . . . . . . . . . . . . . . . . . Searches Triggered . | . . . . . . . . . . . . . . . . . . . . . Construction Impeded 2 | . . . . . . . . . 1 . . . . . . . . 1 . . Haulers Reinforced 3 | . . . . . . . . . . . . . . 1 . 1 . 1 . . Active Scanning Responses . | . . . . . . . . . . . . . . . . . . . . . Cargo Convoy Interrupts . | . . . . . . . . . . . . . . . . . . . . . Stealth | -11 -10 -9 -8 -7 -7 -6 -6 -5 -5 -4 -4 -3 -3 -2 -2 -2 -2 -1 -1 -1 --------- Run | Yrd Mat Mat Mat Fac Gar Fac Gar Fac Ext Fac Gar Res Gar Res Gar Res Gar Acc Gar Acc Distress Signals 14 | . 1 3 3 . . 1 . . 3 . 1 . . . . 2 . . . . Communications Jammed . | . . . . . . . . . . . . . . . . . . . . . Distress Signals . | . . . . . . . . . . . . . . . . . . . . . Times Spotted 553 | . 14 14 29 9 35 20 25 7 19 11 58 21 33 6 54 32 45 37 43 41 Peak Tracking Total 12 | . 2 3 4 3 5 5 5 2 5 5 12 3 5 2 6 4 7 8 6 5 Tactical Retreats 20 | . . . 2 . 3 . . . 3 . 2 1 2 . 2 . 4 . 1 . Traps | -11 -10 -9 -8 -7 -7 -6 -6 -5 -5 -4 -4 -3 -3 -2 -2 -2 -2 -1 -1 -1 ------- Run | Yrd Mat Mat Mat Fac Gar Fac Gar Fac Ext Fac Gar Res Gar Res Gar Res Gar Acc Gar Acc Traps Triggered 27 | . 2 . . 1 1 . 1 . . . 3 . 4 . 4 2 1 2 4 2 Indirectly . | . . . . . . . . . . . . . . . . . . . . . Trap Hack Attempts . | . . . . . . . . . . . . . . . . . . . . . Triggered . | . . . . . . . . . . . . . . . . . . . . . Disarmed . | . . . . . . . . . . . . . . . . . . . . . Reprogrammed . | . . . . . . . . . . . . . . . . . . . . . Reused . | . . . . . . . . . . . . . . . . . . . . . Traps Extracted . | . . . . . . . . . . . . . . . . . . . . . Installed . | . . . . . . . . . . . . . . . . . . . . . Triggered . | . . . . . . . . . . . . . . . . . . . . . Machines | -11 -10 -9 -8 -7 -7 -6 -6 -5 -5 -4 -4 -3 -3 -2 -2 -2 -2 -1 -1 -1 ---------- Run | Yrd Mat Mat Mat Fac Gar Fac Gar Fac Ext Fac Gar Res Gar Res Gar Res Gar Acc Gar Acc Machines Disabled 59 | . . . 2 2 . . . . . 1 7 . 5 . 4 6 11 5 8 8 Max in Single Turn 2 | . . . 1 2 . . . . . 1 2 . 2 . 1 2 2 1 2 1 Garrison Access 2 | . . . . . . . . . . 1 . . . . . . . . . 1 Garrison Relay 5 | . . . . . . . . . . . . . . . 1 . 2 . 2 . Phase Generator 4 | . . . . . . . . . . . 1 . 1 . . . 1 . 1 . Energy Cycler 1 | . . . . . . . . . . . . . . . . . . 1 . . Machines Repaired . | . . . . . . . . . . . . . . . . . . . . . Machines Dismantled . | . . . . . . . . . . . . . . . . . . . . . Machines Sabotaged . | . . . . . . . . . . . . . . . . . . . . . Overloaded Fab Kills . | . . . . . . . . . . . . . . . . . . . . . Hacking | -11 -10 -9 -8 -7 -7 -6 -6 -5 -5 -4 -4 -3 -3 -2 -2 -2 -2 -1 -1 -1 --------- Run | Yrd Mat Mat Mat Fac Gar Fac Gar Fac Ext Fac Gar Res Gar Res Gar Res Gar Acc Gar Acc Machines Accessed 40 | . 4 . 3 2 2 1 2 1 3 3 3 3 1 1 1 4 3 2 1 . Terminals 29 | . 4 . 2 . 2 . 2 . 3 2 3 2 1 . 1 2 3 1 1 . Fabricators 3 | . . . . 1 . . . 1 . . . . . . . 1 . . . . Repair Stations . | . . . . . . . . . . . . . . . . . . . . . Recycling Units . | . . . . . . . . . . . . . . . . . . . . . Scanalyzers 1 | . . . 1 . . . . . . . . . . . . . . . . . Garrison Access 7 | . . . . 1 . 1 . . . 1 . 1 . 1 . 1 . 1 . . Total Hacks 72 | . 11 . 11 2 4 1 3 1 5 5 5 5 2 1 2 7 4 2 1 . Successful 47 | . 9 . 10 2 2 1 2 1 3 3 3 3 1 1 1 1 2 1 1 . Failed 25 | . 2 . 1 . 2 . 1 . 2 2 2 2 1 . 1 6 2 1 . . Catastrophic 6 | . . . 1 . . . . . . . . . . . . 3 1 1 . . Database Lockouts . | . . . . . . . . . . . . . . . . . . . . . Manual 27 | . 10 . 5 . . . . . 1 4 . 2 . . . 4 . 1 . . Terminals 54 | . 11 . 4 . 4 . 3 . 5 4 5 4 2 . 2 4 4 1 1 . Fabricators 4 | . . . . 1 . . . 1 . . . . . . . 2 . . . . Repair Stations . | . . . . . . . . . . . . . . . . . . . . . Recycling Units . | . . . . . . . . . . . . . . . . . . . . . Scanalyzers 7 | . . . 7 . . . . . . . . . . . . . . . . . Garrison Access 7 | . . . . 1 . 1 . . . 1 . 1 . 1 . 1 . 1 . . Terminal Hacks 24 | . 5 . 3 . 2 . 2 . 3 . 3 1 1 . 1 . 2 . 1 . Robot Analysis 6 | . 3 . 2 . . . . . 1 . . . . . . . . . . . Prototype ID Bank 2 | . 1 . 1 . . . . . . . . . . . . . . . . . Open Door 3 | . . . . . 1 . . . 2 . . . . . . . . . . . Open DSF 1 | . . . . . . . . . . . . 1 . . . . . . . . Emergency Access Points 6 | . . . . . . . 1 . . . 1 . 1 . 1 . 1 . 1 . Unreport Threat 1 | . 1 . . . . . . . . . . . . . . . . . . . Garrison Registry 2 | . . . . . 1 . 1 . . . . . . . . . . . . . Patrol Navigation 2 | . . . . . . . . . . . 1 . . . . . 1 . . . Security Stations 1 | . . . . . . . . . . . 1 . . . . . . . . . Fabricator Hacks 2 | . . . . 1 . . . 1 . . . . . . . . . . . . Network Status 2 | . . . . 1 . . . 1 . . . . . . . . . . . . Repair Station Hacks . | . . . . . . . . . . . . . . . . . . . . . Recycling Unit Hacks . | . . . . . . . . . . . . . . . . . . . . . Scanalyzer 7 | . . . 7 . . . . . . . . . . . . . . . . . Retrieve Study 7 | . . . 7 . . . . . . . . . . . . . . . . . Garrison Access Hacks 7 | . . . . 1 . 1 . . . 1 . 1 . 1 . 1 . 1 . . Unlock Access 7 | . . . . 1 . 1 . . . 1 . 1 . 1 . 1 . 1 . . Unauthorized Hacks 7 | . 4 . . . . . . . . 2 . 1 . . . . . . . . Terminals 7 | . 4 . . . . . . . . 2 . 1 . . . . . . . . Botnet 7 | . 4 . . . . . . . . 2 . 1 . . . . . . . . Fabricators . | . . . . . . . . . . . . . . . . . . . . . Repair Stations . | . . . . . . . . . . . . . . . . . . . . . Recycling Units . | . . . . . . . . . . . . . . . . . . . . . Scanalyzers . | . . . . . . . . . . . . . . . . . . . . . Garrison Access . | . . . . . . . . . . . . . . . . . . . . . Data Cores Recovered 3 | . . . . . . . . 2 1 . . . . . . . . . . . Used . | . . . . . . . . . . . . . . . . . . . . . Hacking Detections 35 | . 4 . 3 1 1 . 2 1 2 3 3 3 1 1 1 4 2 2 1 . Full Trace Events 5 | . . . 1 . 1 . . . . . 1 . . . . 1 1 . . . Feedback Events 1 | . . . . . . . . . . . 1 . . . . . . . . . Corruption 1 | . . . . . . . . . . . 1 . . . . . . . . . Feedback Blocked . | . . . . . . . . . . . . . . . . . . . . . Robot Schematics Acquired . | . . . . . . . . . . . . . . . . . . . . . Robots Built . | . . . . . . . . . . . . . . . . . . . . . Authchips . | . . . . . . . . . . . . . . . . . . . . . Time . | . . . . . . . . . . . . . . . . . . . . . Total Robot Build Rating . | . . . . . . . . . . . . . . . . . . . . . Part Schematics Acquired . | . . . . . . . . . . . . . . . . . . . . . Parts Built . | . . . . . . . . . . . . . . . . . . . . . Authchips . | . . . . . . . . . . . . . . . . . . . . . Time . | . . . . . . . . . . . . . . . . . . . . . Total Part Build Rating . | . . . . . . . . . . . . . . . . . . . . . Part Studies Acquired 7 | . . . 7 . . . . . . . . . . . . . . . . . Parts Repaired . | . . . . . . . . . . . . . . . . . . . . . Time . | . . . . . . . . . . . . . . . . . . . . . Parts Recycled . | . . . . . . . . . . . . . . . . . . . . . Recycled Matter . | . . . . . . . . . . . . . . . . . . . . . Retrieved Matter . | . . . . . . . . . . . . . . . . . . . . . Retrieved Components . | . . . . . . . . . . . . . . . . . . . . . Parts Scanalyzed . | . . . . . . . . . . . . . . . . . . . . . Part Schematics Acquired . | . . . . . . . . . . . . . . . . . . . . . Parts Damaged . | . . . . . . . . . . . . . . . . . . . . . Bothacking | -11 -10 -9 -8 -7 -7 -6 -6 -5 -5 -4 -4 -3 -3 -2 -2 -2 -2 -1 -1 -1 ------------ Run | Yrd Mat Mat Mat Fac Gar Fac Gar Fac Ext Fac Gar Res Gar Res Gar Res Gar Acc Gar Acc Used RIF Installer 8 | . . . . . 1 . 1 . . . 1 . 1 . 1 . 1 . 2 . Hotswap 1 | . . . . . . . . . . . . . . . . . . . 1 . Command Fork 1 | . . . . . . . 1 . . . . . . . . . . . . . Threat Obfuscator 1 | . . . . . . . . . . . . . . . . . 1 . . . Watcher Feeds 1 | . . . . . . . . . . . 1 . . . . . . . . . Structural Interface 1 | . . . . . . . . . . . . . 1 . . . . . . . Autooverride 1 | . . . . . . . . . . . . . . . 1 . . . . . Autoassimilate 1 | . . . . . . . . . . . . . . . . . . . 1 . Robots Hacked . | . . . . . . . . . . . . . . . . . . . . . Non-combat . | . . . . . . . . . . . . . . . . . . . . . Combat . | . . . . . . . . . . . . . . . . . . . . . Robot Hacks Applied . | . . . . . . . . . . . . . . . . . . . . . Relay Couplers Released 27 | . . . . . . . . . . 2 . . . . 4 . 7 . 12 2 Machine Destruction 24 | . . . . . . . . . . 2 . . . . 4 . 7 . 9 2 Programmers 3 | . . . . . . . . . . . . . . . . . . . 3 . Fabnet Peak Effective % . | . . . . . . . . . . . . . . . . . . . . . Robots Rewired 24 | . . . . . 2 . . . . . 4 . . . 4 . 4 . 10 . Allies Hacked 3 | . . . . . . . . . . . . . 2 . . . . . . 1 Hacks Repelled . | . . . . . . . . . . . . . . . . . . . . . Allies | -11 -10 -9 -8 -7 -7 -6 -6 -5 -5 -4 -4 -3 -3 -2 -2 -2 -2 -1 -1 -1 -------- Run | Yrd Mat Mat Mat Fac Gar Fac Gar Fac Ext Fac Gar Res Gar Res Gar Res Gar Acc Gar Acc Total Allies 33 | . . . . . 2 . . . 1 . 6 . 2 . 4 . 6 . 12 . Largest Group 11 | . . . . . 2 1 . . 1 . 4 . 2 1 4 . 6 4 11 10 Highest-Rated Group 612 | . . . . . 51 31 . . 159 . 192 . 175 95 502 . 279 182 612 561 Highest-Rated Ally 159 | . . . . . 31 31 . . 159 . 95 . 95 95 148 . 62 59 64 64 Total Orders 1 | . . . . . . . . . . . . . . . 1 . . . . . STAY 1 | . . . . . . . . . . . . . . . 1 . . . . . Ally Attacks 241 | . . . . . 18 10 . . 20 . 13 . 14 9 25 . 15 31 26 60 Total Damage 7409 | . . . . . 237 119 . . 601 . 906 . 626 401 1007 . 329 471 1004 1708 Kills 34 | . . . . . 3 1 . . 2 . 2 . 7 1 4 . 1 4 3 6 Allies Corrupted 7 | . . . . . . . . . . . . . 1 . 3 . . . . 3 Allies Melted . | . . . . . . . . . . . . . . . . . . . . . Intel | -11 -10 -9 -8 -7 -7 -6 -6 -5 -5 -4 -4 -3 -3 -2 -2 -2 -2 -1 -1 -1 ------- Run | Yrd Mat Mat Mat Fac Gar Fac Gar Fac Ext Fac Gar Res Gar Res Gar Res Gar Acc Gar Acc Active Infowar (turns) 9 | . . . . . . . . . . . . . 3 . 2 . . 4 . . Optics 5 | . . . . . . . . . . . . . 3 . 2 . . . . . Seismic 3 | . . . . . . . . . . . . . . . . . . 3 . . Spoofing 1 | . . . . . . . . . . . . . . . . . . 1 . . Robot Analysis Total 6 | . 3 . 2 . . . . . 1 . . . . . . . . . . . Derelict Logs Recovered . | . . . . . . . . . . . . . . . . . . . . . Drone Launches . | . . . . . . . . . . . . . . . . . . . . . Drone Recoveries . | . . . . . . . . . . . . . . . . . . . . . Exploration | -11 -10 -9 -8 -7 -7 -6 -6 -5 -5 -4 -4 -3 -3 -2 -2 -2 -2 -1 -1 -1 ------------- Run | Yrd Mat Mat Mat Fac Gar Fac Gar Fac Ext Fac Gar Res Gar Res Gar Res Gar Acc Gar Acc Turns Passed 25717 | 84 964 1007 1262 259 1185 716 1157 842 674 552 3075 1199 2343 161 2605 978 1893 1305 1996 1460 Spaces Moved 12702 | 48 428 364 622 117 602 338 600 468 301 278 1491 501 1239 83 1349 492 945 704 969 763 Core 4 | 4 . . . . . . . . . . . . . . . . . . . . Treads 12698 | 44 428 364 622 117 602 338 600 468 301 278 1491 501 1239 83 1349 492 945 704 969 763 Legs . | . . . . . . . . . . . . . . . . . . . . . Wheels . | . . . . . . . . . . . . . . . . . . . . . Hover . | . . . . . . . . . . . . . . . . . . . . . Flight . | . . . . . . . . . . . . . . . . . . . . . Fastest Speed 50 | 50 160 240 160 162 162 161 161 162 162 159 160 160 155 155 152 152 152 152 152 156 Average Speed 163 | 150 199 240 160 162 162 161 163 162 162 159 165 190 155 155 156 153 152 152 153 157 Slowest Speed 250 | 160 240 240 162 162 162 162 164 164 162 162 180 250 160 155 157 157 155 152 156 162 Overloaded Moves . | . . . . . . . . . . . . . . . . . . . . . Propulsion Burnouts . | . . . . . . . . . . . . . . . . . . . . . Robots Hopped . | . . . . . . . . . . . . . . . . . . . . . Potential Cave-ins 4 | . . . . . . . . . . . . . . . . 3 . 1 . . Cave-ins Triggered . | . . . . . . . . . . . . . . . . . . . . . Exploration Rate (%) 46 | 3 92 40 44 3 75 11 68 15 43 8 99 15 94 4 99 19 95 26 97 26 Regions Visited 20 Branch Regions 1 Pre-discovered Areas . | . . . . . . . . . . . . . . . . . . . . . Known Exits Taken 13 | 1 1 1 1 1 . 1 . 1 1 1 . 1 . 1 . 1 . 1 . . Unknown Exits Taken . | . . . . . . . . . . . . . . . . . . . . . Scrap Searched . | . . . . . . . . . . . . . . . . . . . . . Spaces Dug 34 | . . . 2 . . . . . . . . . . . 20 4 8 . . . Terrain Destroyed 924 | . . . 2 13 . . . 11 1 . 219 2 100 . 50 65 120 70 153 118 Melee 2 | . . . 2 . . . . . . . . . . . . . . . . . Projectile 407 | . . . . . . . . 5 1 . 19 2 . . 50 65 44 59 70 92 AOE 515 | . . . . 13 . . . 6 . . 200 . 100 . . . 76 11 83 26 Terrain Rammed . | . . . . . . . . . . . . . . . . . . . . . Walls Destroyed . | . . . . . . . . . . . . . . . . . . . . . Machines Disabled . | . . . . . . . . . . . . . . . . . . . . . Actions | -11 -10 -9 -8 -7 -7 -6 -6 -5 -5 -4 -4 -3 -3 -2 -2 -2 -2 -1 -1 -1 --------- Run | Yrd Mat Mat Mat Fac Gar Fac Gar Fac Ext Fac Gar Res Gar Res Gar Res Gar Acc Gar Acc Total 15459 | 56 479 444 770 150 696 411 672 531 429 355 1874 611 1485 98 1604 589 1256 814 1278 857 Wait 1062 | . 16 31 77 4 23 . 7 21 78 30 140 21 123 1 51 29 225 15 161 9 Move 12677 | 47 427 363 621 116 600 338 598 467 300 277 1489 500 1237 83 1348 491 943 703 967 762 Hop . | . . . . . . . . . . . . . . . . . . . . . Pick Up 91 | 2 3 10 . 1 . 2 1 3 2 4 9 10 6 1 23 2 . 6 2 4 Fast Attach 81 | 7 1 2 1 1 4 5 2 6 . 8 14 3 3 . 6 5 2 3 2 6 Attach 45 | . . . 2 1 1 2 5 . 1 1 3 3 1 2 2 . . 8 8 5 Detach 12 | . . . . . . . 2 . . . 1 1 . . 3 1 . 1 1 2 Swap 153 | . 3 5 9 4 2 6 4 8 3 1 15 5 8 1 20 3 2 35 9 10 Drop 127 | . . 6 4 4 1 4 . 10 2 8 26 2 8 . 32 8 2 5 1 4 Fire 1061 | . 29 27 53 19 58 54 53 16 43 18 148 66 98 10 100 50 61 37 66 55 Melee 9 | . . . 3 . . . . . . 6 . . . . . . . . . . Ram . | . . . . . . . . . . . . . . . . . . . . . Kick . | . . . . . . . . . . . . . . . . . . . . . Crush 5 | . . . . . . . . . . 2 . . . . 2 . . 1 . . Escape Stasis . | . . . . . . . . . . . . . . . . . . . . . Rewire 136 | . . . . . 7 . . . . . 29 . 1 . 17 . 21 . 61 . Trap . | . . . . . . . . . . . . . . . . . . . . . Miscellaneous . | . . . . . . . . . . . . . . . . . . . . . Route ------- -11/Scrapyard -10/Materials (discovered 5 exits: *Mat x3 / *Min x2) -9/Materials -8/Materials -7/Factory -7/Garrison (discovered 4 exits: *Fac x3 / *Fac) -6/Factory -6/Garrison (discovered 3 exits: *Fac x3) -5/Factory -5/Extension -4/Factory -4/Garrison (discovered 3 exits: *Res x3) -3/Research -3/Garrison (discovered 3 exits: *Res x3) -2/Research -2/Garrison (discovered 4 exits: *Acc x3 / *Res) -2/Research -2/Garrison (discovered 3 exits: *Acc x3) -1/Access -1/Garrison (discovered 3 exits: *Acc x3) -1/Access To Epsilon Eridani History --------- Turn | Location | Event 8 | -11/Scrapyard | Identified exit to Materials 8 | -11/Scrapyard | Discovered exit to Materials (range 15) 85 | -11/Scrapyard | Entered Materials 85 | -10/Materials | Evolved 1 slot: Utility x1 178 | -10/Materials | Identified exit to Materials 178 | -10/Materials | Discovered exit to Materials (range 7) 312 | -10/Materials | Build established: Hacker-Mutant 359 | -10/Materials | Identified exit to Mines 359 | -10/Materials | Discovered exit to Mines (range 12) 466 | -10/Materials | Discovered exit to Mines (range 16) 553 | -10/Materials | Discovered exit to Materials (range 12) 885 | -10/Materials | Derelicts attacked the area 996 | -10/Materials | Discovered exit to Materials (range 16) 1049 | -10/Materials | Entered another Materials area 1049 | -9/Materials | Evolved 2 slots: Utility x2 1561 | -9/Materials | Identified exit to Materials 1561 | -9/Materials | Discovered exit to Materials (range 4) 2056 | -9/Materials | Entered another Materials area 2056 | -8/Materials | Evolved 2 slots: Propulsion x2 3297 | -8/Materials | Identified exit to Factory 3297 | -8/Materials | Discovered exit to Factory (range 13) 3318 | -8/Materials | Entered Factory 3318 | -7/Factory | Evolved 2 slots: Propulsion x1, Utility x1 3410 | -7/Factory | Garrison activated, responded to threat 3457 | -7/Factory | Identified exit to Garrison 3577 | -7/Factory | Entered Garrison 3623 | -7/Garrison | Triggered checkpoint 3711 | -7/Garrison | Installed Relay Interface Framework 3743 | -7/Garrison | Triggered checkpoint 3837 | -7/Garrison | Triggered checkpoint 3934 | -7/Garrison | Identified exit to Factory 3934 | -7/Garrison | Discovered exit to Factory (range 10) 4017 | -7/Garrison | Triggered checkpoint 4237 | -7/Garrison | Discovered exit to Factory (range 10) 4263 | -7/Garrison | Triggered checkpoint 4344 | -7/Garrison | Lost 4 parts (1n2u1w) 4523 | -7/Garrison | Triggered checkpoint 4561 | -7/Garrison | Triggered checkpoint 4620 | -7/Garrison | Identified exit to Factory 4620 | -7/Garrison | Discovered exit to Factory (range 5) 4624 | -7/Garrison | Build established: Scavenger-Mutant 4724 | -7/Garrison | Discovered exit to Factory (range 11) 4733 | -7/Garrison | Discovered exit to Factory (range 51) 4733 | -7/Garrison | Discovered exit to Factory (range 11) 4733 | -7/Garrison | Discovered exit to Factory (range 65) 4733 | -7/Garrison | Discovered exit to Factory (range 30) 4762 | -7/Garrison | Entered Factory 4762 | -6/Factory | Accompanied by 1 ally 4762 | -6/Factory | Evolved 2 slots: Propulsion x1, Utility x1 5208 | -6/Factory | Garrison activated, responded to threat 5478 | -6/Factory | Identified exit to Garrison 5478 | -6/Factory | Entered Garrison 5516 | -6/Garrison | Triggered checkpoint 5640 | -6/Garrison | Triggered checkpoint 5663 | -6/Garrison | Triggered checkpoint 5765 | -6/Garrison | Lost 3 parts (1n2w) 5774 | -6/Garrison | Destroyed 7 combat bots 5800 | -6/Garrison | Identified exit to Factory 5800 | -6/Garrison | Discovered exit to Factory (range 15) 5936 | -6/Garrison | Triggered checkpoint 6154 | -6/Garrison | Triggered checkpoint 6159 | -6/Garrison | Discovered exit to Factory (range 10) 6262 | -6/Garrison | Build established: Hacker-Mutant 6292 | -6/Garrison | Triggered checkpoint 6321 | -6/Garrison | Discovered exit to Factory (range 59) 6321 | -6/Garrison | Discovered exit to Factory (range 16) 6321 | -6/Garrison | Discovered exit to Factory (range 64) 6426 | -6/Garrison | Triggered checkpoint 6500 | -6/Garrison | Triggered checkpoint 6544 | -6/Garrison | Expanded RIF knowledge: Command Fork 6635 | -6/Garrison | Entered Factory 6635 | -5/Factory | Evolved 2 slots: Utility x2 7459 | -5/Factory | Identified exit to Extension 7459 | -5/Factory | Discovered exit to Extension (range 12) 7477 | -5/Factory | Entered Extension 7532 | -5/Extension | Rescued A7 7824 | -5/Extension | Spotted B-75 Beast 7894 | -5/Extension | Spotted B-75 Beast 7901 | -5/Extension | Destroyed B-75 Beast 8097 | -5/Extension | Destroyed B-75 Beast 8148 | -5/Extension | Identified exit to Factory 8148 | -5/Extension | Discovered exit to Factory (range 3) 8151 | -5/Extension | Entered Factory 8151 | -4/Factory | Evolved 2 slots: Propulsion x2 8262 | -4/Factory | Lost 3 parts (1n1u1w) 8578 | -4/Factory | Identified exit to Garrison 8703 | -4/Factory | Entered Garrison 8731 | -4/Garrison | Triggered checkpoint 8957 | -4/Garrison | Spotted B-86 Titan 8986 | -4/Garrison | Destroyed B-86 Titan 9007 | -4/Garrison | Triggered checkpoint 9025 | -4/Garrison | Triggered checkpoint 9060 | -4/Garrison | Triggered checkpoint 9123 | -4/Garrison | Triggered checkpoint 9223 | -4/Garrison | Triggered checkpoint 9290 | -4/Garrison | Identified exit to Research 9290 | -4/Garrison | Discovered exit to Research (range 14) 9322 | -4/Garrison | Expanded RIF knowledge: Watcher Feeds 9423 | -4/Garrison | Build established: Scavenger-Mutant 9521 | -4/Garrison | Discovered exit to Research (range 13) 9623 | -4/Garrison | Triggered checkpoint 9755 | -4/Garrison | Found embedded Infiltrators 10100 | -4/Garrison | Discovered exit to Research (range 9) 10115 | -4/Garrison | Triggered checkpoint 10119 | -4/Garrison | Learned Research security intel 10296 | -4/Garrison | Phase Generator disabled 10612 | -4/Garrison | Destroyed 7 combat bots 11487 | -4/Garrison | Murdered 3 allies 11778 | -4/Garrison | Entered Research 11778 | -3/Research | Evolved 2 slots: Power x2 12437 | -3/Research | Build established: Hacker-Mutant 12627 | -3/Research | Spotted B-86 Titan 12653 | -3/Research | Destroyed B-86 Titan 12975 | -3/Research | Identified exit to Garrison 12977 | -3/Research | Entered Garrison 13011 | -3/Garrison | Triggered checkpoint 13119 | -3/Garrison | Spotted B-86 Titan 13173 | -3/Garrison | Destroyed B-86 Titan 13275 | -3/Garrison | Triggered checkpoint 13291 | -3/Garrison | Triggered checkpoint 13459 | -3/Garrison | Triggered checkpoint 13788 | -3/Garrison | H-XX Assembler disabled 13829 | -3/Garrison | Identified exit to Research 13829 | -3/Garrison | Discovered exit to Research (range 9) 13932 | -3/Garrison | Build established: Scavenger-Mutant 13993 | -3/Garrison | Discovered exit to Research (range 9) 14045 | -3/Garrison | Triggered checkpoint 14106 | -3/Garrison | Found embedded Infiltrators 14217 | -3/Garrison | Triggered checkpoint 14314 | -3/Garrison | Discovered exit to Research (range 10) 14354 | -3/Garrison | Expanded RIF knowledge: Structural Interface 14451 | -3/Garrison | Triggered checkpoint 14837 | -3/Garrison | Phase Generator disabled 15320 | -3/Garrison | Entered Research 15320 | -2/Research | Accompanied by 1 ally 15320 | -2/Research | Evolved 2 slots: Weapon x2 15439 | -2/Research | Garrison activated, responded to threat 15481 | -2/Research | Identified exit to Garrison 15481 | -2/Research | Entered Garrison 15481 | -2/Garrison | Accompanied by 1 ally 15675 | -2/Garrison | Build established: Scavenger-Tank 15791 | -2/Garrison | Triggered checkpoint 15794 | -2/Garrison | Spotted B-90 Cyclops 15860 | -2/Garrison | Destroyed B-90 Cyclops 15890 | -2/Garrison | Triggered checkpoint 16075 | -2/Garrison | Triggered checkpoint 16136 | -2/Garrison | Identified exit to Access 16136 | -2/Garrison | Discovered exit to Access (range 10) 16266 | -2/Garrison | Expanded RIF knowledge: Autooverride 16359 | -2/Garrison | Triggered checkpoint 16484 | -2/Garrison | Spotted Executioner 16484 | -2/Garrison | Spotted Executioner 16485 | -2/Garrison | Discovered exit to Access (range 12) 16489 | -2/Garrison | Triggered checkpoint 16490 | -2/Garrison | Destroyed Executioner 16507 | -2/Garrison | Destroyed Executioner 16529 | -2/Garrison | Found Prototype Processor 16529 | -2/Garrison | Identified Exp. Core Analyzer 16564 | -2/Garrison | Rewired Executioner 16569 | -2/Garrison | Rewired Executioner 16693 | -2/Garrison | Triggered checkpoint 16711 | -2/Garrison | Spotted B-75 Beast 16714 | -2/Garrison | Destroyed B-75 Beast 16741 | -2/Garrison | Rewired B-86 Titan 16764 | -2/Garrison | Rewired B-90 Cyclops 16833 | -2/Garrison | Identified exit to Research 16833 | -2/Garrison | Discovered exit to Research (range 3) 16875 | -2/Garrison | Lost 3 allies 16925 | -2/Garrison | Triggered checkpoint 17111 | -2/Garrison | Triggered checkpoint 17124 | -2/Garrison | Garrison Relay disabled 17245 | -2/Garrison | Discovered exit to Access (range 10) 17495 | -2/Garrison | Triggered checkpoint 17575 | -2/Garrison | Triggered checkpoint 18086 | -2/Garrison | Entered Research 18807 | -2/Research | System corruption reached 10% 18836 | -2/Research | First assault squad dispatched 18934 | -2/Research | Garrison activated, responded to threat 19041 | -2/Research | Identified exit to Garrison 19064 | -2/Research | Entered Garrison 19201 | -2/Garrison | Spotted B-90 Cyclops 19250 | -2/Garrison | Destroyed B-90 Cyclops 19524 | -2/Garrison | Expanded RIF knowledge: Threat Obfuscation 19533 | -2/Garrison | Discovered exit to Access (range 12) 19536 | -2/Garrison | Triggered checkpoint 19756 | -2/Garrison | Triggered checkpoint 19764 | -2/Garrison | Triggered checkpoint 19802 | -2/Garrison | Triggered checkpoint 19926 | -2/Garrison | Triggered checkpoint 19940 | -2/Garrison | Garrison Relay disabled 20085 | -2/Garrison | Discovered exit to Access (range 9) 20106 | -2/Garrison | Phase Generator disabled 20125 | -2/Garrison | Found embedded Infiltrators 20324 | -2/Garrison | Triggered checkpoint 20412 | -2/Garrison | Triggered checkpoint 20415 | -2/Garrison | Discovered exit to Access (range 15) 20743 | -2/Garrison | Spotted B-90 Cyclops 20753 | -2/Garrison | Destroyed B-90 Cyclops 20760 | -2/Garrison | Garrison Relay disabled 20957 | -2/Garrison | Entered Access 20957 | -1/Access | Accompanied by 4 allies 20957 | -1/Access | Evolved 2 slots: Weapon x2 21299 | -1/Access | Build established: Scavenger-Executioner 21564 | -1/Access | Energy Cycler disabled 21773 | -1/Access | Destroyed 8 combat bots 21775 | -1/Access | Spotted B-99 Colossus 21824 | -1/Access | Destroyed B-99 Colossus 21845 | -1/Access | Lost 4 parts (2u2w) 21849 | -1/Access | Destroyed 9 combat bots 21931 | -1/Access | Found Powered Armor 22015 | -1/Access | Found Prototype Device 22015 | -1/Access | Identified Adv. Kinecellerator 22261 | -1/Access | Identified exit to Garrison 22262 | -1/Access | Entered Garrison 22288 | -1/Garrison | Expanded RIF knowledge: Hotswap 22486 | -1/Garrison | Triggered checkpoint 22601 | -1/Garrison | Spotted B-99 Colossus 22630 | -1/Garrison | Triggered checkpoint 22638 | -1/Garrison | Destroyed B-99 Colossus 22693 | -1/Garrison | Triggered checkpoint 22760 | -1/Garrison | Destroyed 15 combat bots 22840 | -1/Garrison | Triggered checkpoint 23020 | -1/Garrison | Triggered checkpoint 23101 | -1/Garrison | Identified exit to Access 23101 | -1/Garrison | Discovered exit to Access (range 10) 23276 | -1/Garrison | Discovered exit to Access (range 10) 23342 | -1/Garrison | Triggered checkpoint 23475 | -1/Garrison | Spotted B-99 Colossus 23502 | -1/Garrison | Destroyed B-99 Colossus 23502 | -1/Garrison | Garrison Relay disabled 23521 | -1/Garrison | Rescued a captive Derelict 23526 | -1/Garrison | Rescued a captive Derelict 23529 | -1/Garrison | Lost 4 parts (1p2u1w) 23612 | -1/Garrison | Triggered checkpoint 23681 | -1/Garrison | Phase Generator disabled 23735 | -1/Garrison | System corruption reached 10% 23860 | -1/Garrison | Discovered exit to Access (range 10) 23912 | -1/Garrison | P-80 Master assimilated allied JU-2GL(h) 23943 | -1/Garrison | Expanded RIF knowledge: Autoassimilate 24142 | -1/Garrison | Build established: Commander-Executioner 24258 | -1/Garrison | Entered Access 24258 | -1/Access | Accompanied by 10 allies 24493 | -1/Access | Spotted B-99 Colossus 24513 | -1/Access | Allies destroyed B-99 Colossus 24809 | -1/Access | Build established: Scavenger-Executioner 25267 | -1/Access | Destroyed 7 combat bots 25508 | -1/Access | First assault squad dispatched 25567 | -1/Access | Spotted B-99 Colossus 25582 | -1/Access | Destroyed B-99 Colossus 25603 | -1/Access | Spotted B-99 Colossus 25614 | -1/Access | Destroyed B-99 Colossus 25701 | -1/Access | Identified exit to Surface 25701 | -1/Access | Discovered exit to Surface (range 9) 25718 | *** | Escaped! Last Messages --------------- 25639_ System corrupted: Substantial component data lost. 25639_ Sml. Battery melted. 25639_ P-80 Master destroyed. 25643_ Destroyed Adv. Remote Datajack. 25647_ P-80 Master destroyed. 25651_ Destroyed Adv. Heat Sink. 25651_ P-80 Master destroyed. 25663_ System corrupted: Energy discharge (-204). 25675_ Acquired 51 matter. 25678_ U-05 Engineer builds a Wall. 25680_ Acquired 8 matter. 25685_ A696E4IOXVX%ZCKKZIBN4FZJZH,E>LVXCNXDQYS 25686_ U-05 Engineer builds a Wall. 25701_ Main Access Shell breached. 25701_ EXIT=FOUND: SURFACE 25702_ U-05 Engineer builds a Wall. 25716_ UKZHT4D<7NH9RP,, X S&%4 [Achievement: Rambo] [Achievement: Slow And Deadly Wins The Race] [Achievement: On My Own Terms] Map ----- +----------------------------------------------------+ | #????????# # * # #????????? | | #????????# # !!|= # #????????? | | #????????# #######" #????????? | | #????????# %!%=%=[ #????????? | | #??????# # [[ [# #????????? | | #??????# " *%* # #????????? | | #??????### + #????????? | | #????????#######" # #????????? | | =#??????????????#" # #????????? | | #????????????#### ##############????????? | | #/#####????????????# #??????????????????? | | # #????????????# #??????????????????? | | # #????????????# #??????????????????? | | # #????????????# % %#??????????????????? | | # #????????????# % %% #????????????????### | | # #????????????#%% % #????????????????# | | # #????????????#% % #????????????????# | | # #????????????#""""" " ""#????????????????# | | # ######????????????" """??????????????????# | | ###+### #????????????" "??????###########???# | | !#???????#""""" """"#??# """"" #???# | | #???????# #??# """"" #???### | | ####### ! #???????# """ "" #??# " F" #?????? | | ??????## ##??????????" "? #??# ####### | | ???????# #???????????" "" "??#??# ] +!!#### | | ???????# #???????????" "@ "?????# #%| | | ???????#==#???????????" "?????# #[[ | | #+?????#%%#???????????""" ""?????# #= [ | | ????#=*#????????????? ????############# = | | # ????#=%#????????????? ????# ## | | # ????# #????????"""""""""""" # ## !%= | | # ????#[%#????????#"" # ##*[!%[ | | # ????#=[#????????#"" "# "# =%|%= | | # ??###%=#????????#"" #? ##[!#### | | # ### #[%#????????#T #?# ?#=%*#?? | | ## #[*###??????#"" #?# ???#%=%#?? | | " #### ###??????#"" #?? ?????#[%#[#? | | % T ###!* #########"" #####+########%*## # | | %[!!%!! ^^ [[!!!#### | | #% ! !!! ^^ = ]!"#?? | | # *!== ################################# !"#?? | | # ##???????????#########??????????##%="#?? | | # #????????????? ??????????#=="### | | # #?????????????? ??????????#!!"# | | # ##############?? ?????????#* ## | | # # """"" #?? " ?????????# ## | | + # ""T"" #???"""" ???????## ## | | # # +???"""" ######## # | | # # #???""""" + # | | # != # #???"""" # + | +----------------------------------------------------+ Best States ------------- Heat Dissipation 205 Energy Generation 74 Energy Capacity 850 Matter Stores 540 Matter Capacity 550 Sight Range 18 Terrain Scan Density 10 Power Amplification 20 Armor Coverage 1200 Resistance: KI 35 Resistance: TH 35 Resistance: EX 35 Resistance: EM 35 Resistance: I 35 Resistance: S 35 Resistance: P 35 Weapon Cycling 30 Phase Shifting 10 Evasion (%) 50 Targeting Accuracy 20 Target Analysis 8 Core Analysis 8 Recoil Reduction 8 Offensive Hacking 20 Item Schematics ----------------- None Robot Schematics ------------------ None Fabricated ------------ Nothing Repaired ---------- Nothing Studied --------- Hvy. EM Pulse Gun | -8/Materials | Hacked EM Shotgun | -8/Materials | Hacked Hvy. Hammer | -8/Materials | Hacked Imp. Ion Engine | -8/Materials | Hacked Ion Engine | -8/Materials | Hacked Plasma Cutter | -8/Materials | Hacked Hpw. Shotgun | -8/Materials | Hacked Alien Tech Used ----------------- None Achievements -------------- On My Own Terms Rambo Slow And Deadly Wins The Race Challenges ------------ None Game ------ Seed VoltaicBombardmentSource Manual? 0 Play Time 02:46:21 Cumulative 280.6 hours Start 2026.09.18 @ 13:49:28 End 2026.09.21 @ 18:13:26 Sessions 5 Manual Loads 0 Difficulty Explorer Special Mode None Game No. 501 Rogue 330 Adventurer 15 Explorer 156 Win Type 0 Total 34 Types 33/0/0/1/0/0/0/0/0/0 Lore% 66 Gallery% 65 Achievement% 59 Wizard Run 0 Options --------- Layout 0 ASCII 0 Keyboard 1 Movement Numpad Keybinds 0 Fullscreen 2 Font 18/SmallcapsGlow Map View 76x50 Zoom Use 0% Tactical HUD 1 Map Filters NONE Filters NONE Steam 1 RUN: 306f2f25-7f22-44bb-b1db-2d3a25e1165b